[Event "*** Titled Tuesday Blitz"]
[Site "Chess.com"]
[Date "2020.04.14"]
[Round "4"]
[White "Pomegranate988"]
[Black "MiroVlasenko"]
[Result "0-1"]
[WhiteElo "2499"]
[BlackElo "2667"]
[TimeControl "180+1"]
[EndTime "10:40:14 PDT"]
[Termination "MiroVlasenko won by resignation"]

1. d4 {[%clk 0:03:00.9]} 1... f5 {[%clk 0:02:59.8]} 2. Bg5 {[%clk 0:02:58.9]}
2... g6 {[%clk 0:02:57.9]} 3. e3 {[%clk 0:02:46.5]} 3... Bg7 {[%clk 0:02:56.4]}
4. h4 {[%clk 0:02:46.1]} 4... h6 {[%clk 0:02:53.4]} 5. Bf4 {[%clk 0:02:45.4]}
5... d6 {[%clk 0:02:53.8]} 6. Nc3 {[%clk 0:02:34.1]} 6... e5 {[%clk 0:02:50.5]}
7. dxe5 {[%clk 0:02:32]} 7... dxe5 {[%clk 0:02:50.8]} 8. Qxd8+ {[%clk
0:02:32.5]} 8... Kxd8 {[%clk 0:02:51.7]} 9. O-O-O+ {[%clk 0:02:31.9]} 9... Bd7
{[%clk 0:02:50.3]} 10. Bg3 {[%clk 0:02:28.7]} 10... Nc6 {[%clk 0:02:43.7]} 11.
Bb5 {[%clk 0:02:24.9]} 11... Kc8 {[%clk 0:02:36.4]} 12. Nf3 {[%clk 0:02:19.3]}
12... e4 {[%clk 0:02:29.3]} 13. Bxc6 {[%clk 0:02:13.6]} 13... bxc6 {[%clk
0:02:26.9]} 14. Ne5 {[%clk 0:02:10.7]} 14... Be8 {[%clk 0:02:27.2]} 15. Na4
{[%clk 0:02:07.8]} 15... Bf8 {[%clk 0:02:18.6]} 16. f3 {[%clk 0:01:57.7]} 16...
Nf6 {[%clk 0:02:18.2]} 17. Be1 {[%clk 0:01:46.9]} 17... Nd5 {[%clk 0:02:11.8]}
18. fxe4 {[%clk 0:01:39.4]} 18... fxe4 {[%clk 0:02:09.7]} 19. Rd4 {[%clk
0:01:35.2]} 19... Nf6 {[%clk 0:01:42.2]} 20. Rc4 {[%clk 0:01:31.3]} 20... Bd6
{[%clk 0:01:29.7]} 21. Bc3 {[%clk 0:01:18.7]} 21... Nd5 {[%clk 0:01:26.2]} 22.
Rxe4 {[%clk 0:01:18.5]} 22... Nxc3 {[%clk 0:01:25.6]} 23. Nxc3 {[%clk
0:01:17.9]} 23... Rf8 {[%clk 0:01:24.8]} 24. Nf3 {[%clk 0:01:14.8]} 24... Bd7
{[%clk 0:01:22.6]} 25. Rd4 {[%clk 0:01:09.2]} 25... c5 {[%clk 0:01:19.7]} 26.
Rdd1 {[%clk 0:01:05.8]} 26... Re8 {[%clk 0:01:18.2]} 27. Nd5 {[%clk 0:01:02.1]}
27... Bc6 {[%clk 0:01:14.8]} 28. Rhe1 {[%clk 0:00:58.5]} 28... Kb7 {[%clk
0:01:12.2]} 29. c4 {[%clk 0:00:56.4]} 29... Re4 {[%clk 0:01:10.7]} 30. b3 {[%clk
0:00:55.2]} 30... Bg3 {[%clk 0:01:09.2]} 31. Re2 {[%clk 0:00:54.9]} 31... Bxh4
{[%clk 0:01:04.3]} 32. Nc3 {[%clk 0:00:48.9]} 32... Rg4 {[%clk 0:01:03.6]} 33.
Ne5 {[%clk 0:00:48.1]} 33... Rg3 {[%clk 0:00:56.3]} 34. Nxc6 {[%clk 0:00:44.5]}
34... Kxc6 {[%clk 0:00:56.5]} 35. Rd5 {[%clk 0:00:36.7]} 35... Re8 {[%clk
0:00:53.5]} 36. Kd2 {[%clk 0:00:28.9]} 36... Bg5 {[%clk 0:00:51.8]} 37. Nd1
{[%clk 0:00:26.8]} 37... h5 {[%clk 0:00:45.7]} 38. a4 {[%clk 0:00:17.9]} 38...
h4 {[%clk 0:00:45]} 39. a5 {[%clk 0:00:17.9]} 39... Re4 {[%clk 0:00:39.7]} 40.
Kd3 {[%clk 0:00:17.9]} 40... Reg4 {[%clk 0:00:37.6]} 41. Nc3 {[%clk 0:00:17.4]}
41... Rxg2 {[%clk 0:00:36.2]} 42. Rxg2 {[%clk 0:00:15.3]} 42... Rxg2 {[%clk
0:00:36.2]} 43. Ne4 {[%clk 0:00:15.9]} 43... Be7 {[%clk 0:00:36.4]} 44. Re5
{[%clk 0:00:15.8]} 44... Kd7 {[%clk 0:00:36.3]} 45. Rd5+ {[%clk 0:00:14.1]}
45... Ke6 {[%clk 0:00:35.3]} 46. Nxc5+ {[%clk 0:00:13]} 46... Bxc5 {[%clk
0:00:33.1]} 47. Rxc5 {[%clk 0:00:13.6]} 47... h3 {[%clk 0:00:29.8]} 48. Rxc7
{[%clk 0:00:13.5]} 48... Rg5 {[%clk 0:00:29.4]} 49. Rc6+ {[%clk 0:00:10.6]}
49... Kf5 {[%clk 0:00:28.3]} 50. Rc8 {[%clk 0:00:08.3]} 50... h2 {[%clk
0:00:28]} 51. Rf8+ {[%clk 0:00:08.5]} 51... Ke5 {[%clk 0:00:27.1]} 52. Re8+
{[%clk 0:00:07.8]} 52... Kd6 {[%clk 0:00:25.9]} 53. Rh8 {[%clk 0:00:06.8]} 53...
Rh5 {[%clk 0:00:25.9]} 0-1

[Event "*** Titled Tuesday Blitz"]
[Site "Chess.com"]
[Date "2020.04.14"]
[Round "4"]
[White "Storne89"]
[Black "dusanacns"]
[Result "0-1"]
[WhiteElo "2609"]
[BlackElo "2786"]
[TimeControl "180+1"]
[EndTime "10:40:15 PDT"]
[Termination "dusanacns won on time"]

1. d4 {[%clk 0:03:00.9]} 1... Nf6 {[%clk 0:02:56.8]} 2. Nf3 {[%clk 0:03:00.6]}
2... g6 {[%clk 0:02:51]} 3. Nbd2 {[%clk 0:03:00.2]} 3... Bg7 {[%clk 0:02:46.7]}
4. e4 {[%clk 0:02:59]} 4... O-O {[%clk 0:02:46.9]} 5. Bd3 {[%clk 0:02:56.5]}
5... d6 {[%clk 0:02:44.8]} 6. O-O {[%clk 0:02:55.8]} 6... Nc6 {[%clk 0:02:40.6]}
7. c3 {[%clk 0:02:47.9]} 7... e5 {[%clk 0:02:39.5]} 8. Re1 {[%clk 0:02:42.1]}
8... Nh5 {[%clk 0:02:34.1]} 9. dxe5 {[%clk 0:02:18.6]} 9... Nxe5 {[%clk
0:02:31.4]} 10. Bf1 {[%clk 0:02:15.7]} 10... Qf6 {[%clk 0:01:47.5]} 11. Nxe5
{[%clk 0:02:06.8]} 11... dxe5 {[%clk 0:01:46.2]} 12. g3 {[%clk 0:02:06.1]} 12...
Qe7 {[%clk 0:01:31.9]} 13. Nc4 {[%clk 0:01:56.8]} 13... Be6 {[%clk 0:01:28.9]}
14. Qe2 {[%clk 0:01:54.1]} 14... Rfd8 {[%clk 0:01:14.9]} 15. a4 {[%clk
0:01:50.1]} 15... a5 {[%clk 0:01:12.5]} 16. b3 {[%clk 0:01:48.1]} 16... b6
{[%clk 0:01:04.6]} 17. Rb1 {[%clk 0:01:31.9]} 17... Qe8 {[%clk 0:00:56]} 18. Ne3
{[%clk 0:01:17]} 18... Nf6 {[%clk 0:00:53.4]} 19. Bg2 {[%clk 0:01:15.2]} 19...
Qc6 {[%clk 0:00:52.6]} 20. Qb5 {[%clk 0:00:52.5]} 20... Qb7 {[%clk 0:00:40.3]}
21. Nc2 {[%clk 0:00:39]} 21... Nd7 {[%clk 0:00:37]} 22. Ba3 {[%clk 0:00:36.4]}
22... Bf8 {[%clk 0:00:29.9]} 23. Bxf8 {[%clk 0:00:35.6]} 23... Kxf8 {[%clk
0:00:28.3]} 24. b4 {[%clk 0:00:34.1]} 24... c6 {[%clk 0:00:28.5]} 25. Qe2 {[%clk
0:00:32.1]} 25... Qc7 {[%clk 0:00:28.3]} 26. Ra1 {[%clk 0:00:28.1]} 26... Kg7
{[%clk 0:00:27.9]} 27. Ne3 {[%clk 0:00:26.6]} 27... Nf6 {[%clk 0:00:26.3]} 28.
h3 {[%clk 0:00:23.1]} 28... Ne8 {[%clk 0:00:25.3]} 29. Qc2 {[%clk 0:00:23]}
29... Nd6 {[%clk 0:00:23.3]} 30. Red1 {[%clk 0:00:22.3]} 30... h5 {[%clk
0:00:22.1]} 31. Kh2 {[%clk 0:00:20.7]} 31... Nb7 {[%clk 0:00:21.3]} 32. Qb2
{[%clk 0:00:17.6]} 32... Qe7 {[%clk 0:00:19.9]} 33. h4 {[%clk 0:00:16.6]} 33...
f6 {[%clk 0:00:18.2]} 34. b5 {[%clk 0:00:16.3]} 34... Qc7 {[%clk 0:00:15.5]} 35.
bxc6 {[%clk 0:00:15.2]} 35... Qxc6 {[%clk 0:00:16.4]} 36. Nd5 {[%clk 0:00:16.1]}
36... Bxd5 {[%clk 0:00:15]} 37. exd5 {[%clk 0:00:16.6]} 37... Qd6 {[%clk
0:00:11.4]} 38. Rab1 {[%clk 0:00:17]} 38... Nc5 {[%clk 0:00:10.6]} 39. Qb5
{[%clk 0:00:17.1]} 39... Rab8 {[%clk 0:00:10.1]} 40. Rb2 {[%clk 0:00:16.3]}
40... Rdc8 {[%clk 0:00:10.3]} 41. Rdb1 {[%clk 0:00:16.2]} 41... Rc7 {[%clk
0:00:10.7]} 42. Qc4 {[%clk 0:00:11.9]} 42... f5 {[%clk 0:00:10.1]} 43. Qb5
{[%clk 0:00:07.4]} 43... Rbb7 {[%clk 0:00:09.3]} 0-1

[Event "*** Titled Tuesday Blitz"]
[Site "Chess.com"]
[Date "2020.04.14"]
[Round "4"]
[White "jwillz14"]
[Black "Rodalquilar"]
[Result "0-1"]
[WhiteElo "2385"]
[BlackElo "2626"]
[TimeControl "180+1"]
[EndTime "10:40:15 PDT"]
[Termination "Rodalquilar won by checkmate"]

1. Nf3 {[%clk 0:03:00.9]} 1... d5 {[%clk 0:02:59.4]} 2. g3 {[%clk 0:03:01.8]}
2... Nf6 {[%clk 0:02:58.9]} 3. Bg2 {[%clk 0:03:02.4]} 3... Bf5 {[%clk 0:02:54]}
4. O-O {[%clk 0:03:02.8]} 4... e6 {[%clk 0:02:54.6]} 5. c4 {[%clk 0:03:03.1]}
5... c6 {[%clk 0:02:53.2]} 6. Qb3 {[%clk 0:03:02.9]} 6... Qb6 {[%clk 0:02:51.9]}
7. d3 {[%clk 0:03:02.9]} 7... Nbd7 {[%clk 0:02:50.5]} 8. Nc3 {[%clk 0:03:03]}
8... Be7 {[%clk 0:02:49.4]} 9. Be3 {[%clk 0:03:02.6]} 9... Qxb3 {[%clk
0:02:49.1]} 10. axb3 {[%clk 0:03:03.5]} 10... a6 {[%clk 0:02:49.8]} 11. Nd4
{[%clk 0:02:57.7]} 11... Bg6 {[%clk 0:02:46.9]} 12. cxd5 {[%clk 0:02:56.1]}
12... exd5 {[%clk 0:02:31.4]} 13. Nc2 {[%clk 0:02:51.7]} 13... O-O {[%clk
0:02:29.4]} 14. h3 {[%clk 0:02:51.7]} 14... Rfe8 {[%clk 0:02:28.6]} 15. f4
{[%clk 0:02:51.5]} 15... h5 {[%clk 0:02:13.3]} 16. f5 {[%clk 0:02:49.8]} 16...
Bh7 {[%clk 0:02:13.7]} 17. Bd4 {[%clk 0:02:18.2]} 17... Bd6 {[%clk 0:02:03.5]}
18. Rf3 {[%clk 0:02:15.6]} 18... Ne5 {[%clk 0:01:59.7]} 19. Rff1 {[%clk
0:02:08.4]} 19... Rad8 {[%clk 0:01:54.9]} 20. Bb6 {[%clk 0:02:03.3]} 20... Rc8
{[%clk 0:01:44.2]} 21. Bd4 {[%clk 0:02:00.7]} 21... Rcd8 {[%clk 0:01:43.4]} 22.
Bb6 {[%clk 0:02:00.5]} 22... Rc8 {[%clk 0:01:43.9]} 23. Bd4 {[%clk 0:01:59.7]}
23... Ned7 {[%clk 0:01:43.5]} 24. Rf3 {[%clk 0:01:57.8]} 24... Re7 {[%clk
0:01:40]} 25. b4 {[%clk 0:01:31.4]} 25... Ne5 {[%clk 0:01:36]} 26. Re3 {[%clk
0:01:30.8]} 26... Rce8 {[%clk 0:01:36]} 27. Rf1 {[%clk 0:01:24.3]} 27... Bc7
{[%clk 0:01:20]} 28. Bc5 {[%clk 0:01:23.5]} 28... Rd7 {[%clk 0:01:16.2]} 29. b3
{[%clk 0:01:15.3]} 29... Rdd8 {[%clk 0:01:12.1]} 30. Bd4 {[%clk 0:01:07.3]}
30... Nfd7 {[%clk 0:01:09.4]} 31. Na4 {[%clk 0:01:02.7]} 31... f6 {[%clk
0:01:03.3]} 32. Nc5 {[%clk 0:01:02.8]} 32... Nxc5 {[%clk 0:01:02.3]} 33. bxc5
{[%clk 0:01:03.7]} 33... Nf7 {[%clk 0:00:56.1]} 34. Kf2 {[%clk 0:00:53.2]} 34...
Bxf5 {[%clk 0:00:54.2]} 35. Bf3 {[%clk 0:00:52.1]} 35... Bxh3 {[%clk 0:00:44.5]}
36. Bxh5 {[%clk 0:00:50.9]} 36... Bxf1 {[%clk 0:00:43.4]} 37. Kxf1 {[%clk
0:00:49.6]} 37... Rxe3 {[%clk 0:00:43.4]} 38. Nxe3 {[%clk 0:00:50.5]} 38... Bxg3
{[%clk 0:00:42]} 39. Nf5 {[%clk 0:00:51]} 39... Be5 {[%clk 0:00:42]} 40. Ne7+
{[%clk 0:00:49.1]} 40... Kf8 {[%clk 0:00:31.4]} 41. Ng6+ {[%clk 0:00:48.7]}
41... Ke8 {[%clk 0:00:28.6]} 42. Bxe5 {[%clk 0:00:48.3]} 42... fxe5 {[%clk
0:00:26.3]} 43. Nxe5 {[%clk 0:00:48.9]} 43... Ke7 {[%clk 0:00:26.8]} 44. Bxf7
{[%clk 0:00:43.4]} 44... Rf8 {[%clk 0:00:26.7]} 45. Ng6+ {[%clk 0:00:42.9]}
45... Kxf7 {[%clk 0:00:26.3]} 46. Nxf8 {[%clk 0:00:43.8]} 46... Kxf8 {[%clk
0:00:27.2]} 47. d4 {[%clk 0:00:44.1]} 47... Kf7 {[%clk 0:00:26.8]} 48. Kf2
{[%clk 0:00:45]} 48... Kf6 {[%clk 0:00:22.2]} 49. Kf3 {[%clk 0:00:45.9]} 49...
a5 {[%clk 0:00:18.8]} 50. Kf4 {[%clk 0:00:44.6]} 50... g5+ {[%clk 0:00:17.5]}
51. Kg4 {[%clk 0:00:43.1]} 51... Kg6 {[%clk 0:00:18]} 52. e3 {[%clk 0:00:41.6]}
52... Kf6 {[%clk 0:00:18.3]} 53. e4 {[%clk 0:00:41]} 53... dxe4 {[%clk
0:00:17.9]} 54. Kg3 {[%clk 0:00:41.1]} 54... Kf5 {[%clk 0:00:13.1]} 55. b4
{[%clk 0:00:41.3]} 55... axb4 {[%clk 0:00:12.3]} 56. Kf2 {[%clk 0:00:41.1]}
56... b3 {[%clk 0:00:12.5]} 57. d5 {[%clk 0:00:41]} 57... cxd5 {[%clk
0:00:13.4]} 58. c6 {[%clk 0:00:41.3]} 58... bxc6 {[%clk 0:00:14.3]} 59. Ke3
{[%clk 0:00:41.8]} 59... b2 {[%clk 0:00:14.8]} 60. Kd4 {[%clk 0:00:42.7]} 60...
b1=Q {[%clk 0:00:15.4]} 61. Kc5 {[%clk 0:00:43.6]} 61... Qc2+ {[%clk 0:00:15.5]}
62. Kd6 {[%clk 0:00:44.5]} 62... d4 {[%clk 0:00:16]} 63. Kc7 {[%clk 0:00:45.4]}
63... d3 {[%clk 0:00:16.5]} 64. Kb6 {[%clk 0:00:46.3]} 64... d2 {[%clk 0:00:17]}
65. Kc7 {[%clk 0:00:47.2]} 65... d1=Q {[%clk 0:00:17.6]} 66. Kb6 {[%clk
0:00:48.1]} 66... Qdb1+ {[%clk 0:00:17.3]} 67. Kc7 {[%clk 0:00:49]} 67... Qc5
{[%clk 0:00:17.6]} 68. Kc8 {[%clk 0:00:49.9]} 68... Qbb6 {[%clk 0:00:14.8]} 69.
Kd7 {[%clk 0:00:49.7]} 69... Qb7+ {[%clk 0:00:15.1]} 70. Ke8 {[%clk 0:00:50.6]}
70... Qe5+ {[%clk 0:00:14.7]} 71. Kf8 {[%clk 0:00:50.4]} 71... Qeb8# {[%clk
0:00:15.6]} 0-1

[Event "*** Titled Tuesday Blitz"]
[Site "Chess.com"]
[Date "2020.04.14"]
[Round "4"]
[White "Tesla37"]
[Black "Muracle"]
[Result "1-0"]
[WhiteElo "2883"]
[BlackElo "2680"]
[TimeControl "180+1"]
[EndTime "10:40:16 PDT"]
[Termination "Tesla37 won by resignation"]

1. e4 {[%clk 0:03:00.9]} 1... c5 {[%clk 0:02:59.2]} 2. Nf3 {[%clk 0:03:00.3]}
2... Nc6 {[%clk 0:02:59.3]} 3. Nc3 {[%clk 0:02:59.7]} 3... g6 {[%clk 0:02:58.5]}
4. d4 {[%clk 0:02:57.8]} 4... cxd4 {[%clk 0:02:58.5]} 5. Nxd4 {[%clk 0:02:58.3]}
5... Bg7 {[%clk 0:02:59]} 6. Nde2 {[%clk 0:02:58.9]} 6... Nf6 {[%clk 0:02:58.6]}
7. g3 {[%clk 0:02:59.2]} 7... h5 {[%clk 0:02:57.2]} 8. h3 {[%clk 0:02:58]} 8...
d6 {[%clk 0:02:56.1]} 9. Bg2 {[%clk 0:02:58]} 9... h4 {[%clk 0:02:43]} 10. g4
{[%clk 0:02:56.8]} 10... Nxg4 {[%clk 0:02:40]} 11. hxg4 {[%clk 0:02:55.5]} 11...
Bxg4 {[%clk 0:02:40.9]} 12. Bh3 {[%clk 0:02:35.7]} 12... Bf3 {[%clk 0:02:38.2]}
13. Rg1 {[%clk 0:02:34.6]} 13... Ne5 {[%clk 0:02:28.1]} 14. Bf4 {[%clk
0:02:25.8]} 14... Qa5 {[%clk 0:02:17.1]} 15. Qd5 {[%clk 0:02:14.5]} 15... Qb6
{[%clk 0:01:53.4]} 16. Qb5+ {[%clk 0:02:05.9]} 16... Qxb5 {[%clk 0:01:44.4]} 17.
Nxb5 {[%clk 0:02:05.4]} 17... Kd8 {[%clk 0:00:43.5]} 18. Nbc3 {[%clk 0:01:45.2]}
18... Nc4 {[%clk 0:00:42.4]} 19. O-O-O {[%clk 0:01:20]} 19... Bxe2 {[%clk
0:00:27.8]} 20. Nxe2 {[%clk 0:01:18.7]} 20... Bxb2+ {[%clk 0:00:27.7]} 21. Kb1
{[%clk 0:01:18.9]} 21... Bg7 {[%clk 0:00:23.3]} 22. c3 {[%clk 0:01:18.7]} 22...
b5 {[%clk 0:00:22.7]} 23. Kc2 {[%clk 0:01:14.5]} 23... Kc7 {[%clk 0:00:22.3]}
24. Bg5 {[%clk 0:00:55]} 24... Rae8 {[%clk 0:00:16.9]} 25. Nd4 {[%clk
0:00:53.2]} 25... a6 {[%clk 0:00:13.9]} 26. a4 {[%clk 0:00:52.3]} 26... Rh5
{[%clk 0:00:13]} 27. axb5 {[%clk 0:00:48.9]} 27... axb5 {[%clk 0:00:11.2]} 28.
Nxb5+ {[%clk 0:00:48.1]} 28... Kb6 {[%clk 0:00:11.4]} 29. Nd4 {[%clk 0:00:47.7]}
29... Ra8 {[%clk 0:00:09.4]} 30. Rb1+ {[%clk 0:00:43]} 30... Kc7 {[%clk
0:00:09]} 31. Bxe7 {[%clk 0:00:37.7]} 31... Na3+ {[%clk 0:00:07.9]} 32. Kd3
{[%clk 0:00:35]} 32... Nxb1 {[%clk 0:00:07.6]} 33. Rxb1 {[%clk 0:00:34.9]} 33...
Bxd4 {[%clk 0:00:07.4]} 34. Kxd4 {[%clk 0:00:32.2]} 34... Ra4+ {[%clk
0:00:07.1]} 35. c4 {[%clk 0:00:31.2]} 35... Re5 {[%clk 0:00:06.5]} 36. Bf6
{[%clk 0:00:27.6]} 36... Rc5 {[%clk 0:00:06.3]} 37. Bf1 {[%clk 0:00:27.5]} 37...
h3 {[%clk 0:00:05.8]} 38. e5 {[%clk 0:00:21.8]} 38... Ra2 {[%clk 0:00:03.7]} 39.
exd6+ {[%clk 0:00:21.3]} 39... Kxd6 {[%clk 0:00:04.6]} 40. Bxh3 {[%clk
0:00:19.2]} 40... Rd2+ {[%clk 0:00:03.5]} 41. Kc3 {[%clk 0:00:18.6]} 41... Rxf2
{[%clk 0:00:03.4]} 42. Bd4 {[%clk 0:00:18.5]} 42... Rf3+ {[%clk 0:00:03.8]} 43.
Kb4 {[%clk 0:00:18.8]} 43... Rh5 {[%clk 0:00:02.3]} 44. Bg4 {[%clk 0:00:17.8]}
44... Rf4 {[%clk 0:00:02.8]} 45. Bxh5 {[%clk 0:00:16.4]} 45... gxh5 {[%clk
0:00:03.7]} 46. Bc5+ {[%clk 0:00:16]} 46... Kc6 {[%clk 0:00:03.8]} 47. Rh1
{[%clk 0:00:15.4]} 47... h4 {[%clk 0:00:04.2]} 48. Be3 {[%clk 0:00:15.2]} 48...
Re4 {[%clk 0:00:04.2]} 49. Bf2 {[%clk 0:00:14.7]} 49... f5 {[%clk 0:00:04.3]}
1-0

[Event "*** Titled Tuesday Blitz"]
[Site "Chess.com"]
[Date "2020.04.14"]
[Round "4"]
[White "Siemba"]
[Black "Nbk90"]
[Result "0-1"]
[WhiteElo "2244"]
[BlackElo "2529"]
[TimeControl "180+1"]
[EndTime "10:40:16 PDT"]
[Termination "Nbk90 won on time"]

1. e4 {[%clk 0:03:00.9]} 1... e5 {[%clk 0:02:57.5]} 2. Nf3 {[%clk 0:02:55.4]}
2... Nc6 {[%clk 0:02:57.7]} 3. Bc4 {[%clk 0:02:53.9]} 3... Bc5 {[%clk
0:02:54.7]} 4. c3 {[%clk 0:02:52.9]} 4... Nf6 {[%clk 0:02:53.6]} 5. d3 {[%clk
0:02:52]} 5... d6 {[%clk 0:02:52]} 6. O-O {[%clk 0:02:45.9]} 6... a6 {[%clk
0:02:50.4]} 7. a4 {[%clk 0:02:44.1]} 7... Ba7 {[%clk 0:02:49.1]} 8. h3 {[%clk
0:02:27.1]} 8... O-O {[%clk 0:02:47.3]} 9. Nbd2 {[%clk 0:02:22.4]} 9... h6
{[%clk 0:02:47.1]} 10. b4 {[%clk 0:02:03.6]} 10... Ne7 {[%clk 0:02:42]} 11. Re1
{[%clk 0:01:39.6]} 11... Ng6 {[%clk 0:02:41.4]} 12. Nf1 {[%clk 0:01:38.8]} 12...
c6 {[%clk 0:02:27.6]} 13. Be3 {[%clk 0:01:36.1]} 13... d5 {[%clk 0:02:14.8]} 14.
Bxa7 {[%clk 0:01:32.2]} 14... Rxa7 {[%clk 0:02:08.4]} 15. exd5 {[%clk
0:01:29.9]} 15... cxd5 {[%clk 0:02:05.1]} 16. Bb3 {[%clk 0:01:29.2]} 16... Re8
{[%clk 0:02:02.7]} 17. Ng3 {[%clk 0:01:18.4]} 17... b6 {[%clk 0:01:59.9]} 18.
Qd2 {[%clk 0:01:09.2]} 18... Rae7 {[%clk 0:01:56.6]} 19. Rad1 {[%clk 0:00:43]}
19... Qd6 {[%clk 0:01:52.3]} 20. d4 {[%clk 0:00:32.7]} 20... e4 {[%clk
0:01:49.6]} 21. Ne5 {[%clk 0:00:32.4]} 21... Nxe5 {[%clk 0:01:47.8]} 22. dxe5
{[%clk 0:00:32.7]} 22... Qxe5 {[%clk 0:01:41.4]} 23. Bxd5 {[%clk 0:00:19.2]}
23... Nxd5 {[%clk 0:01:26.7]} 24. Qxd5 {[%clk 0:00:18.3]} 24... Qxc3 {[%clk
0:01:26.7]} 25. Rxe4 {[%clk 0:00:16]} 25... Rxe4 {[%clk 0:01:12.8]} 26. Nxe4
{[%clk 0:00:16.9]} 26... Qxb4 {[%clk 0:01:10.2]} 27. Nd6 {[%clk 0:00:15.8]}
27... Be6 {[%clk 0:01:04.7]} 28. Qc6 {[%clk 0:00:11.9]} 28... Rd8 {[%clk
0:01:02]} 29. g3 {[%clk 0:00:08.2]} 29... Qc5 {[%clk 0:00:58.3]} 30. Qxc5 {[%clk
0:00:05.5]} 30... bxc5 {[%clk 0:00:58.2]} 31. Rd2 {[%clk 0:00:06]} 31... Rb8
{[%clk 0:00:49.6]} 32. Ne4 {[%clk 0:00:06]} 32... Bxh3 {[%clk 0:00:47.3]} 33.
Nxc5 {[%clk 0:00:05.3]} 33... Bg4 {[%clk 0:00:41.8]} 34. Kg2 {[%clk 0:00:05.1]}
34... a5 {[%clk 0:00:40.5]} 35. Rd5 {[%clk 0:00:04.2]} 35... Rb4 {[%clk
0:00:36.1]} 36. Rd8+ {[%clk 0:00:04.3]} 36... Kh7 {[%clk 0:00:35.5]} 37. Ra8
{[%clk 0:00:05.2]} 37... Rc4 {[%clk 0:00:33.3]} 38. Rxa5 {[%clk 0:00:05.4]}
38... Rc3 {[%clk 0:00:32.9]} 39. Rb5 {[%clk 0:00:03.9]} 39... Bf3+ {[%clk
0:00:32.2]} 40. Kh2 {[%clk 0:00:03.7]} 40... h5 {[%clk 0:00:32.1]} 41. Kh3
{[%clk 0:00:03.4]} 41... g5 {[%clk 0:00:30.3]} 42. g4 {[%clk 0:00:02.9]} 42...
Bxg4+ {[%clk 0:00:27.6]} 43. Kh2 {[%clk 0:00:02.9]} 43... Bf3 {[%clk 0:00:26.7]}
44. Rb6 {[%clk 0:00:02.8]} 44... h4 {[%clk 0:00:26.2]} 45. Nd7 {[%clk
0:00:02.4]} 45... Rc1 {[%clk 0:00:23.9]} 46. Nf6+ {[%clk 0:00:03.3]} 46... Kg7
{[%clk 0:00:22.2]} 47. Ne8+ {[%clk 0:00:01.8]} 47... Kf8 {[%clk 0:00:21.4]} 0-1

[Event "*** Titled Tuesday Blitz"]
[Site "Chess.com"]
[Date "2020.04.14"]
[Round "4"]
[White "LiemLe"]
[Black "Vincent_Vega95"]
[Result "1/2-1/2"]
[WhiteElo "3005"]
[BlackElo "2777"]
[TimeControl "180+1"]
[EndTime "10:40:17 PDT"]
[Termination "Game drawn - insufficient material"]

1. e4 {[%clk 0:03:00.9]} 1... c5 {[%clk 0:02:59.7]} 2. Nf3 {[%clk 0:03:00.7]}
2... Nc6 {[%clk 0:02:59]} 3. d4 {[%clk 0:03:01.1]} 3... cxd4 {[%clk 0:02:59]} 4.
Nxd4 {[%clk 0:03:02]} 4... Nf6 {[%clk 0:02:59.4]} 5. Nc3 {[%clk 0:03:02.2]} 5...
e5 {[%clk 0:02:59.7]} 6. Ndb5 {[%clk 0:03:01.3]} 6... d6 {[%clk 0:03:00]} 7. Nd5
{[%clk 0:03:01.5]} 7... Nxd5 {[%clk 0:03:00]} 8. exd5 {[%clk 0:03:02.4]} 8...
Nb8 {[%clk 0:03:00.2]} 9. a4 {[%clk 0:02:58]} 9... Be7 {[%clk 0:02:59.7]} 10.
Bd2 {[%clk 0:02:55.8]} 10... O-O {[%clk 0:02:57]} 11. a5 {[%clk 0:02:54.1]}
11... Nd7 {[%clk 0:02:48.5]} 12. Bb4 {[%clk 0:02:45.6]} 12... Nf6 {[%clk
0:02:39.2]} 13. Be2 {[%clk 0:02:35.5]} 13... Ne4 {[%clk 0:02:17.6]} 14. f3
{[%clk 0:01:58]} 14... Nc5 {[%clk 0:01:51]} 15. Bxc5 {[%clk 0:01:33.7]} 15...
dxc5 {[%clk 0:01:49.8]} 16. d6 {[%clk 0:01:34.6]} 16... Bg5 {[%clk 0:01:49.6]}
17. Qd5 {[%clk 0:01:29.1]} 17... Be3 {[%clk 0:01:30.8]} 18. Nc7 {[%clk
0:01:23.6]} 18... Qh4+ {[%clk 0:01:14.4]} 19. Kd1 {[%clk 0:01:08.1]} 19... Rb8
{[%clk 0:01:06.1]} 20. Ra3 {[%clk 0:00:57.3]} 20... Qd4+ {[%clk 0:00:46.2]} 21.
Qxd4 {[%clk 0:00:53.7]} 21... exd4 {[%clk 0:00:43.4]} 22. Nd5 {[%clk 0:00:41.1]}
22... Bh6 {[%clk 0:00:35.4]} 23. Re1 {[%clk 0:00:36.6]} 23... Rd8 {[%clk
0:00:35.3]} 24. Bc4 {[%clk 0:00:32.7]} 24... Kf8 {[%clk 0:00:35.7]} 25. Nc7
{[%clk 0:00:28.6]} 25... Be3 {[%clk 0:00:35.2]} 26. Nd5 {[%clk 0:00:23.8]} 26...
Bh6 {[%clk 0:00:32.4]} 27. Nc7 {[%clk 0:00:18.1]} 27... Bf4 {[%clk 0:00:32.4]}
28. g3 {[%clk 0:00:16.3]} 28... Bxd6 {[%clk 0:00:32.3]} 29. Nb5 {[%clk
0:00:16.8]} 29... a6 {[%clk 0:00:24.8]} 30. Nxd6 {[%clk 0:00:17]} 30... Rxd6
{[%clk 0:00:25.7]} 31. Re5 {[%clk 0:00:17.4]} 31... Rc6 {[%clk 0:00:23.5]} 32.
Rb3 {[%clk 0:00:15.9]} 32... Be6 {[%clk 0:00:19.1]} 33. Bxe6 {[%clk 0:00:16]}
33... fxe6 {[%clk 0:00:19.4]} 34. c3 {[%clk 0:00:15.6]} 34... dxc3 {[%clk
0:00:18.3]} 35. Rxc3 {[%clk 0:00:16.5]} 35... Rbc8 {[%clk 0:00:18.8]} 36. Kc2
{[%clk 0:00:16.4]} 36... Ke7 {[%clk 0:00:19.3]} 37. f4 {[%clk 0:00:17]} 37...
Kf6 {[%clk 0:00:19.2]} 38. g4 {[%clk 0:00:16.9]} 38... h6 {[%clk 0:00:19.7]} 39.
h4 {[%clk 0:00:16.9]} 39... c4 {[%clk 0:00:20.2]} 40. g5+ {[%clk 0:00:16.3]}
40... hxg5 {[%clk 0:00:20.3]} 41. hxg5+ {[%clk 0:00:17.2]} 41... Kf7 {[%clk
0:00:20.9]} 42. Rce3 {[%clk 0:00:16.8]} 42... Rd8 {[%clk 0:00:20.9]} 43. f5
{[%clk 0:00:15.2]} 43... exf5 {[%clk 0:00:20.6]} 44. Rxf5+ {[%clk 0:00:15.8]}
44... Kg6 {[%clk 0:00:21.2]} 45. Rfe5 {[%clk 0:00:15.8]} 45... Rd7 {[%clk
0:00:21.7]} 46. Kc3 {[%clk 0:00:15.3]} 46... b5 {[%clk 0:00:20.4]} 47. axb6
{[%clk 0:00:15]} 47... Rxb6 {[%clk 0:00:21]} 48. Re6+ {[%clk 0:00:15.4]} 48...
Rxe6 {[%clk 0:00:20.6]} 49. Rxe6+ {[%clk 0:00:16.3]} 49... Kxg5 {[%clk
0:00:21.2]} 50. Rxa6 {[%clk 0:00:17.2]} 50... Rb7 {[%clk 0:00:21.2]} 51. Rc6
{[%clk 0:00:16.9]} 51... Kh5 {[%clk 0:00:20.1]} 52. Rxc4 {[%clk 0:00:16.8]}
52... g5 {[%clk 0:00:20.8]} 53. Rc8 {[%clk 0:00:14.8]} 53... g4 {[%clk
0:00:20.2]} 54. Rg8 {[%clk 0:00:15.3]} 54... Kh4 {[%clk 0:00:20.4]} 55. b4
{[%clk 0:00:15.3]} 55... g3 {[%clk 0:00:19.2]} 56. Kc4 {[%clk 0:00:15.9]} 56...
Kh3 {[%clk 0:00:19.6]} 57. b5 {[%clk 0:00:16.1]} 57... Kh2 {[%clk 0:00:20.1]}
58. Kc5 {[%clk 0:00:15.9]} 58... g2 {[%clk 0:00:20.6]} 59. Kc6 {[%clk 0:00:16]}
59... Rxb5 {[%clk 0:00:20.7]} 60. Rxg2+ {[%clk 0:00:15.9]} 60... Kxg2 {[%clk
0:00:20.8]} 61. Kxb5 {[%clk 0:00:16.8]} 1/2-1/2